Workbook

Sheet Sheet1
E1: Type | G1: Date | I1: Num | K1: Adj | M1: Name | O1: Memo | Q1: Split | S1: Debit | U1: Credit | W1: Balance
B2: 101 · Cash On Hand | W2: 75
B3: Total 101 · Cash On Hand | W3: =W2 -> 75
B4: 102 · Whitaker Bank | W4: 120043.38
E5: Deposit | G5: 2024-01-02 | O5: Deposit | Q5: 409 · Lease Income | S5: 100 | W5: 120143.38
E6: Deposit | G6: 2024-01-02 | O6: Dec. Payments | Q6: 49900 · Uncategorized Income | S6: 1033.83 | W6: 121177.21
E7: Deposit | G7: 2024-01-02 | O7: Deposit | Q7: 49900 · Uncategorized Income | S7: 4483.29 | W7: 125660.5
E8: Deposit | G8: 2024-01-02 | O8: Deposit | Q8: 49900 · Uncategorized Income | S8: 6399.07 | W8: 132059.57
E9: Deposit | G9: 2024-01-02 | O9: Deposit | Q9: 49900 · Uncategorized Income | S9: 8655.23 | W9: 140714.8
E10: Check | G10: 2024-01-02 | M10: USDA | O10: 315 | Q10: 221 · US Dept of Agri. Loan Payable | U10: 55562.5 | W10: 85152.3
E11: Deposit | G11: 2024-01-03 | O11: Deposit | Q11: 49900 · Uncategorized Income | S11: 16352.41 | W11: 101504.71
E12: Deposit | G12: 2024-01-03 | O12: Deposit | Q12: 49900 · Uncategorized Income | S12: 5918.53 | W12: 107423.24
E13: Deposit | G13: 2024-01-03 | O13: Deposit | Q13: 408 · Returned check Charge | S13: 20 | W13: 107443.24
E14: Paycheck | G14: 2024-01-05 | I14: DD | M14: Christopher M Ralph | Q14: -SPLIT- | U14: 634.49 | W14: 106808.75
E15: Paycheck | G15: 2024-01-05 | I15: DD | M15: Christopher Obrien | Q15: -SPLIT- | U15: 553.41 | W15: 106255.34
E16: Paycheck | G16: 2024-01-05 | I16: DD | M16: Deavon M Johnston | Q16: -SPLIT- | U16: 493.43 | W16: 105761.91
E17: Paycheck | G17: 2024-01-05 | I17: DD | M17: Jan Sanders | Q17: -SPLIT- | U17: 773.12 | W17: 104988.79
E18: Paycheck | G18: 2024-01-05 | I18: DD | M18: Michael T Hieatt | Q18: -SPLIT- | U18: 867.54 | W18: 104121.25
E19: Paycheck | G19: 2024-01-05 | I19: 2879 | M19: Eddie Harrod | Q19: -SPLIT- | U19: 365.4 | W19: 103755.85
E20: Paycheck | G20: 2024-01-05 | I20: 2880 | M20: Jonathan Dailey | Q20: -SPLIT- | U20: 365.4 | W20: 103390.45
E21: Paycheck | G21: 2024-01-05 | I21: 2881 | M21: Scott Wooldridge | Q21: -SPLIT- | U21: 365.4 | W21: 103025.05
E22: Deposit | G22: 2024-01-05 | O22: Deposit | Q22: 49900 · Uncategorized Income | S22: 10640.98 | W22: 113666.03
E23: Deposit | G23: 2024-01-05 | O23: Deposit | Q23: 49900 · Uncategorized Income | S23: 3166.27 | W23: 116832.3
E24: Deposit | G24: 2024-01-05 | O24: Luking (12) | Q24: 405 · Tap-on Fee | S24: 13584 | W24: 130416.3
E25: Check | G25: 2024-01-05 | I25: 2882 | M25: City of Lawrenceburg | O25: 911 Fees | Q25: 69800 · Uncategorized Expenses | U25: 164.19 | W25: 130252.11
E26: Check | G26: 2024-01-05 | I26: 2883 | M26: Farmdale Water | Q26: 516 · Office Utilities | U26: 70.78 | W26: 130181.33
E27: Check | G27: 2024-01-05 | I27: 2884 | M27: T-Mobile | Q27: 515 · Telephone | U27: 65 | W27: 130116.33
E28: Check | G28: 2024-01-05 | I28: 2885 | M28: Whitaker Bank | Q28: -SPLIT- | U28: 4326.57 | W28: 125789.76
E29: Check | G29: 2024-01-05 | I29: 2886 | M29: Core&Main | Q29: 504 · Supplies | U29: 11.83 | W29: 125777.93
E30: Check | G30: 2024-01-05 | I30: 2887 | M30: USA Bluebook | Q30: 504 · Supplies | U30: 19.79 | W30: 125758.14
E31: Check | G31: 2024-01-05 | I31: 2888 | M31: Community Trust Bank | O31: Loan Interest | Q31: 69800 · Uncategorized Expenses | U31: 301.91 | W31: 125456.23
E32: Check | G32: 2024-01-05 | I32: 2889 | M32: Ferguson Water Works | Q32: 504 · Supplies | U32: 1107.58 | W32: 124348.65
E33: Deposit | G33: 2024-01-08 | O33: Deposit | Q33: 49900 · Uncategorized Income | S33: 8603.76 | W33: 132952.41
E34: Deposit | G34: 2024-01-08 | O34: Deposit | Q34: 49900 · Uncategorized Income | S34: 6291.25 | W34: 139243.66
E35: Check | G35: 2024-01-08 | I35: 2890 | M35: FWD Water Loss Surcharge Account | Q35: 105 · Comm. Trust Dist Loss Surcharge | U35: 7436.74 | W35: 131806.92
E36: Check | G36: 2024-01-08 | I36: 2891 | M36: Frankfort Sewer Dept. | Q36: 540 · Sewer Fees/Surcharges | U36: 15499.37 | W36: 116307.55
E37: Check | G37: 2024-01-08 | I37: 2892 | M37: Farmdale Sanitation District | Q37: 540 · Sewer Fees/Surcharges | U37: 55748.85 | W37: 60558.7
E38: Check | G38: 2024-01-08 | I38: 2893 | M38: General Rental | Q38: 505 · Maintenance & Repairs | U38: 366.01 | W38: 60192.69
E39: Check | G39: 2024-01-08 | I39: 2894 | M39: Bill Cox | Q39: 505 · Maintenance & Repairs | U39: 850 | W39: 59342.69
E40: Check | G40: 2024-01-08 | I40: 2895 | M40: Franklin County Clerk | O40: easement | Q40: 69800 · Uncategorized Expenses | U40: 50 | W40: 59292.69
E41: Check | G41: 2024-01-08 | I41: 2896 | M41: Whitaker Bank | O41: Safe Deposit Box | Q41: 511 · Office Supplies | U41: 25 | W41: 59267.69
E42: Check | G42: 2024-01-08 | I42: 2897 | M42: fFouser Environmental Services | Q42: 546 · Testing Fees | U42: 635 | W42: 58632.69
E43: Check | G43: 2024-01-08 | I43: 2898 | M43: Liberty Telephone | Q43: 515 · Telephone | U43: 94.9 | W43: 58537.79
E44: Check | G44: 2024-01-08 | I44: 2899 | M44: Postmaster | Q44: 523 · Postage | U44: 225.93 | W44: 58311.86
E45: Check | G45: 2024-01-08 | I45: 2900 | M45: TMT Liquidators | Q45: 412 · Over-pay Refund | U45: 14.9 | W45: 58296.96
E46: Deposit | G46: 2024-01-08 | O46: Bank Drafts | Q46: 49900 · Uncategorized Income | S46: 37143.19 | W46: 95440.15
E47: Deposit | G47: 2024-01-10 | O47: Deposit | Q47: 49900 · Uncategorized Income | S47: 14017.33 | W47: 109457.48
E48: Deposit | G48: 2024-01-10 | O48: Deposit | Q48: 49900 · Uncategorized Income | S48: 6177.39 | W48: 115634.87
E49: Deposit | G49: 2024-01-11 | O49: Deposit | Q49: 49900 · Uncategorized Income | S49: 9341.35 | W49: 124976.22
E50: Check | G50: 2024-01-11 | I50: 2901 | M50: Postmaster | O50: 400 stamps | Q50: 523 · Postage | U50: 264 | W50: 124712.22
E51: Paycheck | G51: 2024-01-12 | I51: DD | M51: Christopher M Ralph | Q51: -SPLIT- | U51: 738.08 | W51: 123974.14
E52: Paycheck | G52: 2024-01-12 | I52: DD | M52: Christopher Obrien | Q52: -SPLIT- | U52: 760.73 | W52: 123213.41
E53: Paycheck | G53: 2024-01-12 | I53: DD | M53: Deavon M Johnston | Q53: -SPLIT- | U53: 493.43 | W53: 122719.98
E54: Paycheck | G54: 2024-01-12 | I54: DD | M54: Harmon Clark | Q54: -SPLIT- | U54: 486.55 | W54: 122233.43
E55: Paycheck | G55: 2024-01-12 | I55: DD | M55: Jan Sanders | Q55: -SPLIT- | U55: 768.37 | W55: 121465.06
E56: Paycheck | G56: 2024-01-12 | I56: DD | M56: Michael T Hieatt | Q56: -SPLIT- | U56: 583.35 | W56: 120881.71
E57: Deposit | G57: 2024-01-12 | O57: Deposit | Q57: 49900 · Uncategorized Income | S57: 1953.18 | W57: 122834.89
E58: Deposit | G58: 2024-01-12 | O58: Deposit | Q58: 49900 · Uncategorized Income | S58: 3408.5 | W58: 126243.39
E59: Check | G59: 2024-01-16 | I59: 2902 | M59: Blue Grass Energy | Q59: -SPLIT- | U59: 2292.29 | W59: 123951.1
E60: Check | G60: 2024-01-16 | I60: 2903 | M60: IRS Tax Payment | Q60: 502 · Payroll taxes | U60: 577 | W60: 123374.1
E61: Check | G61: 2024-01-16 | I61: 2904 | M61: Republic Services | Q61: 512 · Office Maintenance | U61: 116.31 | W61: 123257.79
E62: Check | G62: 2024-01-17 | I62: 2905 | M62: Treasurer , Franklin County | Q62: 502 · Payroll taxes | U62: 637.99 | W62: 122619.8
E63: Paycheck | G63: 2024-01-19 | I63: DD | M63: Christopher M Ralph | Q63: -SPLIT- | U63: 619.26 | W63: 122000.54
E64: Paycheck | G64: 2024-01-19 | I64: DD | M64: Christopher Obrien | Q64: -SPLIT- | U64: 745.15 | W64: 121255.39
E65: Paycheck | G65: 2024-01-19 | I65: DD | M65: Deavon M Johnston | Q65: -SPLIT- | U65: 493.43 | W65: 120761.96
E66: Paycheck | G66: 2024-01-19 | I66: DD | M66: Harmon Clark | Q66: -SPLIT- | U66: 534.43 | W66: 120227.53
E67: Paycheck | G67: 2024-01-19 | I67: DD | M67: Jan Sanders | Q67: -SPLIT- | U67: 767.91 | W67: 119459.62
E68: Paycheck | G68: 2024-01-19 | I68: DD | M68: Michael T Hieatt | Q68: -SPLIT- | U68: 96.76 | W68: 119362.86
E69: Deposit | G69: 2024-01-22 | O69: Deposit | Q69: 49900 · Uncategorized Income | S69: 13004.8 | W69: 132367.66
E70: Check | G70: 2024-01-22 | I70: 2906 | M70: Atmos Energy | Q70: 516 · Office Utilities | U70: 168.44 | W70: 132199.22
E71: Check | G71: 2024-01-22 | I71: 2907 | M71: Lowes | Q71: 505 · Maintenance & Repairs | U71: 86.91 | W71: 132112.31
E72: Check | G72: 2024-01-22 | I72: 2908 | M72: ASGI | O72: Life Ins | Q72: 503 · Group Hospitalization | U72: 28.84 | W72: 132083.47
E73: Deposit | G73: 2024-01-23 | O73: Deposit | Q73: 49900 · Uncategorized Income | S73: 1452.03 | W73: 133535.5
E74: Check | G74: 2024-01-25 | I74: 2909 | M74: Postmaster | Q74: 523 · Postage | U74: 1173.34 | W74: 132362.16
E75: Paycheck | G75: 2024-01-26 | I75: DD | M75: Christopher M Ralph | Q75: -SPLIT- | U75: 686.77 | W75: 131675.39
E76: Paycheck | G76: 2024-01-26 | I76: DD | M76: Christopher Obrien | Q76: -SPLIT- | U76: 1084.64 | W76: 130590.75
E77: Paycheck | G77: 2024-01-26 | I77: DD | M77: Deavon M Johnston | Q77: -SPLIT- | U77: 493.43 | W77: 130097.32
E78: Paycheck | G78: 2024-01-26 | I78: DD | M78: Harmon Clark | Q78: -SPLIT- | U78: 565.37 | W78: 129531.95
E79: Paycheck | G79: 2024-01-26 | I79: DD | M79: Jan Sanders | Q79: -SPLIT- | U79: 768.35 | W79: 128763.6
E80: Check | G80: 2024-01-29 | I80: 2910 | M80: Frankfort Plant Board | Q80: 500 · Water Purchased | U80: 71924.46 | W80: 56839.14
E81: Check | G81: 2024-01-29 | I81: 2911 | M81: Frankfort Plant Board | Q81: -SPLIT- | U81: 311.84 | W81: 56527.3
E82: Check | G82: 2024-01-29 | I82: 2912 | M82: Stoll Keenon Ogden | Q82: 526 · Legal Fees | U82: 2047.5 | W82: 54479.8
E83: Deposit | G83: 2024-01-31 | M83: Redeposits | O83: Deposit | Q83: 49900 · Uncategorized Income | S83: 285.08 | W83: 54764.88
E84: Deposit | G84: 2024-01-31 | O84: January cc | Q84: 49900 · Uncategorized Income | S84: 49578.3 | W84: 104343.18
E85: Deposit | G85: 2024-01-31 | O85: Dec cc (Jan) | Q85: 49900 · Uncategorized Income | S85: 0 | W85: 104343.18
E86: Check | G86: 2024-01-31 | M86: Returned Checks | Q86: 69800 · Uncategorized Expenses | U86: 430.66 | W86: 103912.52
E87: Check | G87: 2024-01-31 | M87: Returned Check Charges | Q87: 408 · Returned check Charge | U87: 20 | W87: 103892.52
E88: Check | G88: 2024-01-31 | M88: SimplifIT | Q88: 512 · Office Maintenance | U88: 862.45 | W88: 103030.07
E89: Check | G89: 2024-01-31 | M89: IRS Tax Payment | Q89: 502 · Payroll taxes | U89: 1054.65 | W89: 101975.42
E90: Check | G90: 2024-01-31 | O90: ACH fees | Q90: 69800 · Uncategorized Expenses | U90: 225.25 | W90: 101750.17
E91: Check | G91: 2024-01-31 | O91: returned ACH | Q91: 69800 · Uncategorized Expenses | U91: 165.68 | W91: 101584.49
E92: Check | G92: 2024-01-31 | M92: Kentucky Retirement System | Q92: 514 · Employee Retirement | U92: 3742.73 | W92: 97841.76
E93: Check | G93: 2024-01-31 | M93: United Health Care | Q93: 503 · Group Hospitalization | U93: 4251.94 | W93: 93589.82
E94: Check | G94: 2024-01-31 | M94: IRS Tax Payment | Q94: 502 · Payroll taxes | U94: 189.34 | W94: 93400.48
E95: Check | G95: 2024-01-31 | M95: Cintas | Q95: 554 · Uniform Rental | U95: 310.63 | W95: 93089.85
E96: Check | G96: 2024-01-31 | M96: Kentucky State Treasurer | Q96: 502 · Payroll taxes | U96: 1011.31 | W96: 92078.54
E97: Check | G97: 2024-01-31 | M97: Ky Unemployment Insurance Fund | Q97: 69800 · Uncategorized Expenses | U97: 22.28 | W97: 92056.26
E98: Check | G98: 2024-01-31 | M98: Kentucky State Treasurer | Q98: 539 · Sales Tax Paid | U98: 718.9 | W98: 91337.36
E99: Check | G99: 2024-01-31 | M99: KRWA | Q99: 553 · Education & Training | U99: 140 | W99: 91197.36
E100: Check | G100: 2024-01-31 | M100: IRS Tax Payment | Q100: 502 · Payroll taxes | U100: 2389.09 | W100: 88808.27
E101: Check | G101: 2024-01-31 | M101: Kentucky State Treasurer | Q101: 541 · School Tax | U101: 2742.52 | W101: 86065.75
E102: Check | G102: 2024-01-31 | M102: Deluxe Checks | Q102: 511 · Office Supplies | U102: 144.27 | W102: 85921.48
E103: Check | G103: 2024-01-31 | M103: BP Gas | Q103: 506 · Truck - Gas | U103: 724.28 | W103: 85197.2
E104: Check | G104: 2024-01-31 | M104: IRS Tax Payment | Q104: 502 · Payroll taxes | U104: 2254.16 | W104: 82943.04
E105: Check | G105: 2024-01-31 | O105: service charge | Q105: 69800 · Uncategorized Expenses | U105: 6 | W105: 82937.04
E106: Deposit | G106: 2024-01-31 | O106: Jan cc (Feb) | Q106: 49900 · Uncategorized Income | S106: 3975.18 | W106: 86912.22
E107: General Journal | G107: 2024-01-31 | I107: 2 | O107: Balance Adjustment | Q107: 66900 · Reconciliation Discrepancies | S107: 0.02 | W107: 86912.24
E108: Paycheck | G108: 2024-02-01 | I108: 2913 | M108: Eddie Harrod | Q108: -SPLIT- | U108: 365.4 | W108: 86546.84
E109: Paycheck | G109: 2024-02-01 | I109: 2914 | M109: Jonathan Dailey | Q109: -SPLIT- | U109: 365.4 | W109: 86181.44
E110: Paycheck | G110: 2024-02-01 | I110: 2915 | M110: Scott Wooldridge | Q110: -SPLIT- | U110: 365.4 | W110: 85816.04
E111: Deposit | G111: 2024-02-01 | O111: Deposit | Q111: 409 · Lease Income | S111: 100 | W111: 85916.04
E112: Deposit | G112: 2024-02-01 | O112: Deposit | Q112: 407 · Rec Fees | S112: 50 | W112: 85966.04
E113: Deposit | G113: 2024-02-01 | O113: Deposit | Q113: 49900 · Uncategorized Income | S113: 1754.9 | W113: 87720.94
E114: Deposit | G114: 2024-02-01 | O114: Deposit | Q114: 49900 · Uncategorized Income | S114: 8202.38 | W114: 95923.32
E115: Paycheck | G115: 2024-02-02 | I115: DD | M115: Christopher M Ralph | Q115: -SPLIT- | U115: 756.59 | W115: 95166.73
E116: Paycheck | G116: 2024-02-02 | I116: DD | M116: Christopher Obrien | Q116: -SPLIT- | U116: 687.32 | W116: 94479.41
E117: Paycheck | G117: 2024-02-02 | I117: DD | M117: Deavon M Johnston | Q117: -SPLIT- | U117: 493.43 | W117: 93985.98
E118: Paycheck | G118: 2024-02-02 | I118: DD | M118: Harmon Clark | Q118: -SPLIT- | U118: 640.72 | W118: 93345.26
E119: Paycheck | G119: 2024-02-02 | I119: DD | M119: Jan Sanders | Q119: -SPLIT- | U119: 768.35 | W119: 92576.91
E120: Deposit | G120: 2024-02-02 | O120: Deposit | Q120: 49900 · Uncategorized Income | S120: 6997.61 | W120: 99574.52
E121: Check | G121: 2024-02-02 | I121: 2916 | M121: Eddie Harrod | O121: Treasurer | Q121: 501 · Salaries & Wages | U121: 200 | W121: 99374.52
E122: Check | G122: 2024-02-02 | I122: 2917 | M122: City of Lawrenceburg | Q122: 69800 · Uncategorized Expenses | U122: 174.96 | W122: 99199.56
E123: Check | G123: 2024-02-02 | I123: 2918 | M123: Farmdale Water | Q123: 516 · Office Utilities | U123: 72.28 | W123: 99127.28
E124: Check | G124: 2024-02-02 | I124: 2919 | M124: T-Mobile | Q124: 515 · Telephone | U124: 65 | W124: 99062.28
E125: Check | G125: 2024-02-02 | I125: 2920 | M125: Whitaker Bank | Q125: 511 · Office Supplies | U125: 377.89 | W125: 98684.39
E126: Check | G126: 2024-02-02 | I126: 2921 | M126: fFouser Environmental Services | Q126: 546 · Testing Fees | U126: 265 | W126: 98419.39
E127: Deposit | G127: 2024-02-06 | O127: Deposit | Q127: 49900 · Uncategorized Income | S127: 11960.66 | W127: 110380.05
E128: Deposit | G128: 2024-02-06 | O128: Deposit | Q128: 49900 · Uncategorized Income | S128: 7909.31 | W128: 118289.36
E129: Deposit | G129: 2024-02-06 | O129: Deposit | Q129: 49900 · Uncategorized Income | S129: 6091.07 | W129: 124380.43
E130: Deposit | G130: 2024-02-07 | O130: Deposit | Q130: 49900 · Uncategorized Income | S130: 10155.76 | W130: 134536.19
E131: Check | G131: 2024-02-08 | I131: 2922 | M131: Frankfort Sewer Dept. | Q131: 540 · Sewer Fees/Surcharges | U131: 16890.06 | W131: 117646.13
E132: Paycheck | G132: 2024-02-09 | I132: DD | M132: Christopher M Ralph | Q132: -SPLIT- | U132: 912.47 | W132: 116733.66
E133: Paycheck | G133: 2024-02-09 | I133: DD | M133: Christopher Obrien | Q133: -SPLIT- | U133: 880.06 | W133: 115853.6
E134: Paycheck | G134: 2024-02-09 | I134: DD | M134: Deavon M Johnston | Q134: -SPLIT- | U134: 493.43 | W134: 115360.17
E135: Paycheck | G135: 2024-02-09 | I135: DD | M135: Harmon Clark | Q135: -SPLIT- | U135: 722.07 | W135: 114638.1
E136: Paycheck | G136: 2024-02-09 | I136: DD | M136: Jan Sanders | Q136: -SPLIT- | U136: 768.35 | W136: 113869.75
E137: Deposit | G137: 2024-02-09 | O137: Deposit | Q137: 49900 · Uncategorized Income | S137: 13867.23 | W137: 127736.98
E138: Deposit | G138: 2024-02-09 | O138: Deposit | Q138: 49900 · Uncategorized Income | S138: 11200.78 | W138: 138937.76
E139: Check | G139: 2024-02-09 | I139: 2923 | M139: Farmdale Sanitation District | Q139: 540 · Sewer Fees/Surcharges | U139: 61644.19 | W139: 77293.57
E140: Check | G140: 2024-02-09 | I140: 2924 | M140: FWD Water Loss Surcharge Account | Q140: 105 · Comm. Trust Dist Loss Surcharge | U140: 7939.58 | W140: 69353.99
E141: Check | G141: 2024-02-09 | I141: 2925 | M141: Community Trust Bank | O141: Loan Int. | Q141: 69800 · Uncategorized Expenses | U141: 301.9 | W141: 69052.09
E142: Check | G142: 2024-02-09 | I142: 2926 | M142: Community Trust Bank | O142: Loan Int. | Q142: 69800 · Uncategorized Expenses | U142: 80.21 | W142: 68971.88
E143: Check | G143: 2024-02-09 | I143: 2927 | M143: Christopher M Ralph | Q143: 515 · Telephone | U143: 50 | W143: 68921.88
E144: Check | G144: 2024-02-09 | I144: 2928 | M144: Shelly Toles Plumbing | Q144: 512 · Office Maintenance | U144: 130 | W144: 68791.88
E145: Deposit | G145: 2024-02-12 | O145: Deposit | Q145: 49900 · Uncategorized Income | S145: 10830.11 | W145: 79621.99
E146: Deposit | G146: 2024-02-12 | O146: Deposit | Q146: 408 · Returned check Charge | S146: 20 | W146: 79641.99
E147: Deposit | G147: 2024-02-12 | O147: Deposit | Q147: 49900 · Uncategorized Income | S147: 2375.22 | W147: 82017.21
E148: Deposit | G148: 2024-02-12 | O148: Deposit | Q148: 49900 · Uncategorized Income | S148: 5678.67 | W148: 87695.88
E149: Deposit | G149: 2024-02-13 | O149: Deposit | Q149: 49900 · Uncategorized Income | S149: 2743.05 | W149: 90438.93
E150: Check | G150: 2024-02-13 | I150: 2929 | M150: Bluegrass Business Health | O150: Employee Drug Test | Q150: 69800 · Uncategorized Expenses | U150: 25 | W150: 90413.93
E151: Check | G151: 2024-02-13 | I151: 2930 | M151: Bill Cox | Q151: 505 · Maintenance & Repairs | U151: 575 | W151: 89838.93
E152: Check | G152: 2024-02-13 | I152: 2931 | M152: Republic Services | Q152: 512 · Office Maintenance | U152: 114.52 | W152: 89724.41
E153: Check | G153: 2024-02-13 | I153: 2932 | M153: Stoll Keenon Ogden | Q153: 526 · Legal Fees | U153: 2108.5 | W153: 87615.91
E154: Check | G154: 2024-02-13 | I154: 2933 | M154: Core&Main | Q154: 504 · Supplies | U154: 2455.97 | W154: 85159.94
E155: Check | G155: 2024-02-13 | I155: 2934 | M155: C.I. Thornburg | Q155: 504 · Supplies | U155: 5442.64 | W155: 79717.3
E156: Check | G156: 2024-02-13 | I156: 2935 | M156: Blue Grass Energy | Q156: -SPLIT- | U156: 2266.88 | W156: 77450.42
E157: Check | G157: 2024-02-13 | I157: 2936 | M157: Liberty Telephone | Q157: 515 · Telephone | U157: 94.9 | W157: 77355.52
E158: Check | G158: 2024-02-13 | I158: 2937 | M158: Postmaster | Q158: 523 · Postage | U158: 211.47 | W158: 77144.05
E159: Check | G159: 2024-02-13 | I159: 2938 | M159: Mike Spencer | O159: Labor (meter reading) | Q159: 69800 · Uncategorized Expenses | U159: 1440 | W159: 75704.05
E160: Check | G160: 2024-02-15 | I160: 2939 | M160: Complete Restoration | O160: Tank inspection | Q160: 505 · Maintenance & Repairs | U160: 950 | W160: 74754.05
E161: Check | G161: 2024-02-15 | I161: 2940 | M161: KACO All Lines Fund | O161: Encroachment Bond | Q161: 509 · Insurance & Bonds | U161: 442.83 | W161: 74311.22
E162: Check | G162: 2024-02-15 | I162: 2941 | M162: Franklin County Clerk | O162: Easements | Q162: 69800 · Uncategorized Expenses | U162: 100 | W162: 74211.22
E163: Paycheck | G163: 2024-02-16 | I163: DD | M163: Christopher M Ralph | Q163: -SPLIT- | U163: 790.34 | W163: 73420.88
E164: Paycheck | G164: 2024-02-16 | I164: DD | M164: Christopher Obrien | Q164: -SPLIT- | U164: 706.6 | W164: 72714.28
E165: Paycheck | G165: 2024-02-16 | I165: DD | M165: Deavon M Johnston | Q165: -SPLIT- | U165: 493.43 | W165: 72220.85
E166: Paycheck | G166: 2024-02-16 | I166: DD | M166: Harmon Clark | Q166: -SPLIT- | U166: 667.17 | W166: 71553.68
E167: Paycheck | G167: 2024-02-16 | I167: DD | M167: Jan Sanders | Q167: -SPLIT- | U167: 768.35 | W167: 70785.33
E168: Deposit | G168: 2024-02-21 | O168: Deposit | Q168: 49900 · Uncategorized Income | S168: 5053.98 | W168: 75839.31
E169: Deposit | G169: 2024-02-21 | O169: Deposit | Q169: 407 · Rec Fees | S169: 50 | W169: 75889.31
E170: Deposit | G170: 2024-02-21 | O170: Deposit | Q170: 49900 · Uncategorized Income | S170: 3130.3 | W170: 79019.61
E171: Deposit | G171: 2024-02-21 | O171: Deposit | Q171: 49900 · Uncategorized Income | S171: 3802.3 | W171: 82821.91
E172: Deposit | G172: 2024-02-21 | O172: Deposit | Q172: 49900 · Uncategorized Income | S172: 7941.98 | W172: 90763.89
E173: Check | G173: 2024-02-22 | I173: 2942 | M173: Lowes | Q173: 505 · Maintenance & Repairs | U173: 705.48 | W173: 90058.41
E174: Check | G174: 2024-02-22 | I174: 2943 | M174: Atmos Energy | Q174: 516 · Office Utilities | U174: 182.13 | W174: 89876.28
E175: Check | G175: 2024-02-22 | I175: 2944 | M175: ASGI | O175: Life Insurance | Q175: 503 · Group Hospitalization | U175: 20.94 | W175: 89855.34
E176: Check | G176: 2024-02-22 | I176: 2945 | M176: IRS Tax Payment | O176: Dec. 2021 | Q176: 502 · Payroll taxes | U176: 1031.7 | W176: 88823.64
E177: Paycheck | G177: 2024-02-23 | I177: DD | M177: Christopher M Ralph | Q177: -SPLIT- | U177: 612.63 | W177: 88211.01
E178: Paycheck | G178: 2024-02-23 | I178: DD | M178: Christopher Obrien | Q178: -SPLIT- | U178: 648.77 | W178: 87562.24
E179: Paycheck | G179: 2024-02-23 | I179: DD | M179: Deavon M Johnston | Q179: -SPLIT- | U179: 493.43 | W179: 87068.81
E180: Paycheck | G180: 2024-02-23 | I180: DD | M180: Harmon Clark | Q180: -SPLIT- | U180: 510.49 | W180: 86558.32
E181: Paycheck | G181: 2024-02-23 | I181: DD | M181: Jan Sanders | Q181: -SPLIT- | U181: 768.35 | W181: 85789.97
E182: Check | G182: 2024-02-23 | I182: 2946 | M182: Franklin County Clerk | O182: Easements | Q182: 69800 · Uncategorized Expenses | U182: 100 | W182: 85689.97
E183: Check | G183: 2024-02-23 | I183: 2947 | M183: Frankfort Plant Board | Q183: 500 · Water Purchased | U183: 58707.69 | W183: 26982.28
E184: Check | G184: 2024-02-23 | I184: 2948 | M184: Frankfort Plant Board | Q184: -SPLIT- | U184: 312.07 | W184: 26670.21
E185: Check | G185: 2024-02-26 | I185: 2949 | M185: Postmaster | Q185: 523 · Postage | U185: 1529.58 | W185: 25140.63
E186: Check | G186: 2024-02-26 | I186: 2950 | M186: Farmdale Water | Q186: -SPLIT- | U186: 29.36 | W186: 25111.27
E187: Deposit | G187: 2024-02-29 | O187: Dep. correction | Q187: 49900 · Uncategorized Income | S187: 0.78 | W187: 25112.05
E188: Check | G188: 2024-02-29 | O188: Dep. correction | Q188: 69800 · Uncategorized Expenses | U188: 80.03 | W188: 25032.02
E189: Deposit | G189: 2024-02-29 | O189: Feb CC | Q189: 49900 · Uncategorized Income | S189: 49257.58 | W189: 74289.6
E190: Deposit | G190: 2024-02-29 | O190: Bank Drafts | Q190: 49900 · Uncategorized Income | S190: 37846.82 | W190: 112136.42
E191: Check | G191: 2024-02-29 | M191: SimplifIT | Q191: 512 · Office Maintenance | U191: 862.45 | W191: 111273.97
E192: Check | G192: 2024-02-29 | M192: KRWA | O192: Membership renewal | Q192: 553 · Education & Training | U192: 1680 | W192: 109593.97
E193: Check | G193: 2024-02-29 | O193: ACH fees | Q193: 69800 · Uncategorized Expenses | U193: 228.5 | W193: 109365.47
E194: Check | G194: 2024-02-29 | M194: Kentucky State Treasurer | O194: addl due | Q194: 502 · Payroll taxes | U194: 16.78 | W194: 109348.69
E195: Check | G195: 2024-02-29 | M195: Returned Check Charges | Q195: 69800 · Uncategorized Expenses | U195: 106.19 | W195: 109242.5
E196: Check | G196: 2024-02-29 | M196: Returned Check Charges | Q196: 408 · Returned check Charge | U196: 5 | W196: 109237.5
E197: Check | G197: 2024-02-29 | O197: Returned ACH | Q197: 69800 · Uncategorized Expenses | U197: 171.99 | W197: 109065.51
E198: Check | G198: 2024-02-29 | M198: Kentucky Retirement System | Q198: 514 · Employee Retirement | U198: 3327.07 | W198: 105738.44
E199: Check | G199: 2024-02-29 | M199: Kentucky State Treasurer | Q199: 502 · Payroll taxes | U199: 679.01 | W199: 105059.43
E200: Check | G200: 2024-02-29 | M200: United Health Care | Q200: 503 · Group Hospitalization | U200: 1136.06 | W200: 103923.37
... 2050 more rows
